bitfinex-derivatives/quotes_BTCF0:USTF0_20250527
["timestamp","ask_amount","ask_price","bid_price","bid_amount"]
[1748320114213,1.80747619,109100.0,109090.0,0.09299314]
[1748320115406,0.1832957,109080.0,109070.0,0.77780773]
[1748320115611,0.70340929,109080.0,109070.0,0.83780773]
[1748320115811,0.79760929,109080.0,109070.0,0.83780773]
[1748320116213,0.79760929,109080.0,109070.0,0.88780773]
[1748320116615,0.79760929,109080.0,109070.0,0.52700773]
[1748320116910,0.8365915,109080.0,109070.0,0.53100773]
[1748320118309,0.8365915,109080.0,109070.0,0.114]
[1748320118514,1.1973915,109080.0,109070.0,0.064]
[1748320118712,1.1973915,109080.0,109070.0,0.07752339]
[1748320120215,1.1973915,109080.0,109070.0,0.26083599]
[1748320121116,1.1973915,109080.0,109070.0,0.07752339]
[1748320122518,0.8365915,109080.0,109070.0,0.26083599]
[1748320127221,0.8365915,109080.0,109070.0,0.10327968]
[1748320127424,0.8365915,109080.0,109070.0,0.24327968]
[1748320128221,0.8365915,109080.0,109070.0,0.25683228]
[1748320128927,0.8366315,109080.0,109070.0,0.25683228]
[1748320129120,0.72907791,109080.0,109070.0,0.32813228]
[1748320129323,0.8367515,109080.0,109070.0,0.32813228]
[1748320130923,1.1975515,109080.0,109070.0,0.32813228]
[1748320131525,0.8367515,109080.0,109070.0,0.32813228]
[1748320132026,0.8367515,109080.0,109070.0,0.68893228]
[1748320133222,0.4241515,109080.0,109070.0,0.68893228]
[1748320133717,0.8367515,109080.0,109070.0,0.68893228]
[1748320134724,1.30510509,109080.0,109070.0,0.1635526]
[1748320135029,1.1975515,109080.0,109070.0,0.3368652]
[1748320135229,1.30510509,109080.0,109070.0,0.3368652]
[1748320135428,1.1975515,109080.0,109070.0,0.3368652]
[1748320136127,1.1985515,109080.0,109070.0,0.3368652]
[1748320139333,1.09099791,109080.0,109070.0,0.3368652]
[1748320139532,1.1985515,109080.0,109070.0,0.3368652]
[1748320140032,0.67839791,109080.0,109070.0,0.3368652]
[1748320140222,1.1985515,109080.0,109070.0,0.3368652]
[1748320140626,0.8377515,109080.0,109070.0,0.3368652]
[1748320140829,0.73019791,109080.0,109070.0,0.3368652]
[1748320141036,0.8377515,109080.0,109070.0,0.3368652]
[1748320146643,0.8377515,109080.0,109070.0,0.4768652]
[1748320148245,1.1985515,109080.0,109070.0,0.4768652]
[1748320155258,0.8377515,109080.0,109070.0,0.4768652]
[1748320155454,1.1985515,109080.0,109070.0,0.4768652]
[1748320156455,0.8377515,109080.0,109070.0,0.4768652]
[1748320156660,1.1985515,109080.0,109070.0,0.4768652]
[1748320159659,1.09099791,109080.0,109070.0,0.4768652]
[1748320159957,1.1985515,109080.0,109070.0,0.4768652]
[1748320161063,1.1984315,109080.0,109070.0,0.4768652]
[1748320161665,0.7858315,109080.0,109070.0,0.4768652]
[1748320161867,1.1984315,109080.0,109070.0,0.4768652]
[1748320162066,0.7858315,109080.0,109070.0,0.4768652]
[1748320162368,1.1984315,109080.0,109070.0,0.4768652]
[1748320165369,0.31747791,109080.0,109070.0,0.4768652]
[1748320165566,0.73007791,109080.0,109070.0,0.94521879]
[1748320165766,0.73019791,109080.0,109070.0,1.00611879]
[1748320166976,0.13430221,109080.0,109070.0,1.01660925]
[1748320167169,0.10130221,109080.0,109070.0,1.01660925]
[1748320167369,0.51378221,109080.0,109070.0,1.01660925]
[1748320167568,0.51390221,109080.0,109070.0,1.01660925]
[1748320167767,0.51378221,109080.0,109070.0,1.01660925]
[1748320167974,0.51390221,109080.0,109070.0,1.01660925]
[1748320169071,0.47592,109080.0,109070.0,1.00611879]
[1748320169369,0.6592157,109080.0,109070.0,1.00611879]
[1748320170072,0.2466157,109080.0,109070.0,1.00611879]
[1748320170366,0.6592157,109080.0,109070.0,1.00611879]
[1748320170569,0.6592157,109080.0,109070.0,0.93618154]
[1748320170763,0.6592157,109080.0,109070.0,0.75925359]
[1748320171373,0.6915157,109080.0,109070.0,0.94256619]
[1748320172177,0.6915157,109080.0,109070.0,0.9530526]
[1748320174173,0.79906929,109080.0,109070.0,0.9530526]
[1748320174373,0.79906929,109080.0,109070.0,1.2854726]
[1748320175073,0.79906929,109080.0,109070.0,1.29956529]
[1748320176576,0.79906929,109080.0,109070.0,1.28907888]
[1748320179779,0.38646929,109080.0,109070.0,1.28907888]
[1748320179977,0.6914757,109080.0,109070.0,1.28907888]
[1748320180281,0.6914757,109080.0,109070.0,1.29956529]
[1748320182890,0.6914757,109080.0,109070.0,1.28907888]
[1748320188385,0.6914757,109080.0,109070.0,0.92827888]
[1748320188585,0.6914757,109080.0,109070.0,1.28907888]
[1748320189386,0.6914757,109080.0,109070.0,0.92827888]
[1748320189586,0.6914757,109080.0,109070.0,1.28907888]
[1748320190187,0.6914757,109080.0,109070.0,1.29956529]
[1748320195589,0.79902929,109080.0,109070.0,1.29956529]
[1748320196591,0.6914757,109080.0,109070.0,1.29956529]
[1748320196893,0.6913557,109080.0,109070.0,1.29956529]
[1748320197091,0.6914757,109080.0,109070.0,1.29956529]
[1748320197592,0.6914757,109080.0,109070.0,1.1920117]
[1748320197793,0.83728393,109080.0,109070.0,1.29956529]
[1748320202300,0.72973034,109080.0,109070.0,1.29956529]
[1748320202696,0.31717034,109080.0,109070.0,1.29956529]
[1748320202991,0.31717034,109080.0,109070.0,1.97465888]
[1748320202992,0.07047464,109080.0,109070.0,1.97465888]
[1748320203197,0.07035464,109080.0,109070.0,1.97465888]
[1748320203399,0.07035464,109080.0,109070.0,1.9790507]
[1748320203600,0.03222,109080.0,109070.0,1.96856429]
[1748320203795,0.0321,109080.0,109070.0,1.96856429]
[1748320204004,0.69294765,109120.0,109090.0,0.0458162]
[1748320204203,0.0612,109110.0,109100.0,1.24167609]
[1748320204505,0.0612,109110.0,109100.0,1.56749059]
[1748320204799,0.0612,109110.0,109100.0,1.59759059]
[1748320205001,0.2444454,109110.0,109100.0,0.8698751]
[1748320205212,0.2444454,109110.0,109100.0,0.5008]
[1748320205394,0.71279899,109110.0,109100.0,0.14]
[1748320206001,0.71279899,109110.0,109100.0,0.15047282]
[1748320206701,0.71379899,109110.0,109100.0,0.15147282]
[1748320206904,0.75292264,109110.0,109100.0,0.3242622]
[1748320207103,0.78522264,109110.0,109100.0,0.3242622]
[1748320207405,0.78422264,109110.0,109100.0,0.3232622]
[1748320207600,0.78522264,109110.0,109100.0,0.3242622]
[1748320207902,0.78522367,109110.0,109100.0,0.3242622]
[1748320208906,0.67766905,109110.0,109100.0,0.3242622]
[1748320210506,1.09018905,109110.0,109100.0,0.3242622]
[1748320210801,1.19774367,109110.0,109100.0,0.3242622]
[1748320211001,1.19786367,109110.0,109100.0,0.3242622]
[1748320211604,1.09030905,109110.0,109100.0,0.3242622]
[1748320211802,1.09018905,109110.0,109100.0,0.3242622]
[1748320212005,1.09030905,109110.0,109100.0,0.3242622]
[1748320212717,0.31698905,109110.0,109100.0,0.3242622]
[1748320213005,0.72950905,109110.0,109100.0,0.3242622]
[1748320213204,0.72938905,109110.0,109100.0,0.3242622]
[1748320213504,0.72950905,109110.0,109100.0,0.3242622]
[1748320214799,0.6913854,109110.0,109100.0,0.3242622]
[1748320215005,0.79894002,109110.0,109100.0,0.3242622]
[1748320217298,0.6913854,109110.0,109100.0,0.3242622]
[1748320217499,0.79894002,109110.0,109100.0,0.3242622]
[1748320219206,0.79894002,109110.0,109100.0,0.4642622]
[1748320223101,0.09562,109110.0,109100.0,0.93261682]
[1748320223406,0.6912254,109110.0,109100.0,0.8551622]
[1748320223614,0.6913454,109110.0,109100.0,0.8551622]
[1748320224114,0.6913454,109110.0,109100.0,0.86427363]
[1748320224314,0.6913454,109110.0,109100.0,0.50347363]
[1748320227413,0.6913454,109110.0,109100.0,0.3242622]
[1748320231616,0.72948584,109110.0,109100.0,0.3242622]
[1748320233019,0.6913454,109110.0,109100.0,0.34473502]
[1748320233618,0.6913454,109110.0,109100.0,0.33473502]
[1748320238321,0.79890002,109110.0,109100.0,0.33473502]
[1748320238911,0.89295281,109110.0,109100.0,0.141]
[1748320239116,0.1832622,109100.0,109090.0,0.01061032]
[1748320239321,0.68491682,109100.0,109090.0,0.04061032]
[1748320239518,0.69423223,109100.0,109090.0,0.04061032]
[1748320239915,0.7324104,109100.0,109090.0,0.0301375]
[1748320240115,0.7324104,109100.0,109090.0,0.2134165]
[1748320240326,0.7334104,109100.0,109090.0,0.2144165]
[1748320240624,0.7334104,109100.0,109090.0,0.2154165]
[1748320240817,0.72409499,109100.0,109090.0,0.2154165]
[1748320242015,0.72809499,109100.0,109090.0,0.2134165]
[1748320242516,0.79369499,109100.0,109090.0,0.2134165]
[1748320244736,0.93114889,109100.0,109090.0,0.14]
[1748320245331,0.93114889,109100.0,109090.0,0.323279]
[1748320245528,0.93114889,109100.0,109090.0,0.14]
[1748320246037,0.93114889,109100.0,109090.0,0.323279]
[1748320246941,0.93114889,109100.0,109090.0,0.19741658]
[1748320247330,0.82359427,109100.0,109090.0,0.19741658]
[1748320247525,0.93114889,109100.0,109090.0,0.19741658]
[1748320249329,0.93114889,109100.0,109090.0,0.03]
[1748320251138,0.93114889,109100.0,109090.0,0.213279]
[1748320256142,1.03872689,109100.0,109090.0,0.213279]
[1748320260344,0.93116058,109100.0,109090.0,0.213279]
[1748320260537,1.34372058,109100.0,109090.0,0.213279]
[1748320260742,1.34372058,109100.0,109090.0,0.245779]
[1748320260934,1.45128689,109100.0,109090.0,0.03]
[1748320262247,1.23615427,109100.0,109090.0,0.03]
[1748320262449,1.45128689,109100.0,109090.0,0.03]
[1748320269353,1.50857454,109100.0,109090.0,0.03]
[1748320271256,1.50857454,109100.0,109090.0,0.2132789]
[1748320271458,1.50857454,109100.0,109090.0,0.0623]
[1748320271647,1.40100823,109100.0,109090.0,0.0623]
[1748320271846,1.29344192,109100.0,109090.0,0.2455789]
[1748320272247,1.29344192,109100.0,109090.0,0.3071789]
[1748320272551,1.40100823,109100.0,109090.0,0.3071789]
[1748320273055,1.40100823,109100.0,109090.0,0.1239]
[1748320273356,1.40100823,109100.0,109090.0,0.0938]
[1748320274356,1.04020823,109100.0,109090.0,0.0938]
[1748320274556,1.40100823,109100.0,109090.0,0.0938]
[1748320274756,1.40100823,109100.0,109090.0,0.277079]
[1748320274958,1.40100823,109100.0,109090.0,0.307179]
[1748320277357,1.40100823,109100.0,109090.0,0.1239]
[1748320277945,1.40100823,109100.0,109090.0,0.0938]
[1748320278150,1.40100823,109100.0,109090.0,0.2770789]
[1748320278949,0.80256282,109100.0,109090.0,0.38464521]
[1748320279156,0.72364462,109100.0,109090.0,0.41474521]
[1748320279657,0.72364462,109100.0,109090.0,0.80546521]
[1748320279959,0.72376462,109100.0,109090.0,0.80546521]
[1748320280153,0.6281788,109100.0,109090.0,0.81593803]
[1748320280358,0.6282988,109100.0,109090.0,0.81593803]
[1748320280559,0.2674988,109100.0,109090.0,0.81593803]
[1748320282159,0.2674988,109100.0,109090.0,1.2283191]
[1748320283060,0.2674988,109100.0,109090.0,1.2583191]
[1748320286166,0.2674988,109100.0,109090.0,1.20673803]
[1748320287765,0.2216822,109100.0,109090.0,1.20673803]
[1748320289070,0.2216822,109100.0,109090.0,0.84593803]
[1748320289273,0.2216822,109100.0,109090.0,1.20673803]
[1748320289668,0.2216822,109100.0,109090.0,1.09917172]
[1748320289967,0.2216822,109100.0,109090.0,1.20673803]
[1748320291671,0.2216822,109100.0,109090.0,1.19626521]
[1748320293471,0.2216822,109100.0,109090.0,1.0886989]
[1748320293672,0.2216822,109100.0,109090.0,1.19626521]
[1748320293974,0.03842,109100.0,109090.0,1.19626521]
[1748320294372,0.0383,109100.0,109090.0,1.19626521]
[1748320294565,0.03842,109100.0,109090.0,1.19626521]
[1748320295472,0.03842,109100.0,109090.0,1.20673803]
[1748320296973,0.03842,109100.0,109090.0,1.30383152]
[1748320297272,0.005,109100.0,109090.0,1.30383152]
[1748320297475,0.00512,109100.0,109090.0,1.30383152]
[1748320297874,0.00512,109100.0,109090.0,1.60874521]
[1748320300877,0.032,109110.0,109100.0,0.1832622]
[1748320301077,0.032,109110.0,109100.0,1.01382851]
[1748320301780,0.032,109110.0,109100.0,1.12139482]
[1748320301974,0.036,109110.0,109100.0,1.12139482]
[1748320302478,0.036,109110.0,109100.0,1.13184777]
[1748320302679,0.039,109110.0,109100.0,1.13184777]
[1748320303182,0.036,109110.0,109100.0,1.13184777]
[1748320304182,0.033,109110.0,109100.0,1.13284777]
[1748320305977,0.0641,109110.0,109100.0,1.13284777]
[1748320306379,0.0948,109110.0,109100.0,1.13284777]
[1748320307091,0.0948,109110.0,109100.0,1.02528146]
[1748320307588,0.0948,109110.0,109100.0,0.91771515]
[1748320307790,0.0948,109110.0,109100.0,1.02528146]
[1748320308386,0.0948,109110.0,109100.0,0.91771515]
[1748320308594,0.0948,109110.0,109100.0,1.02528146]
[1748320310196,0.0948,109110.0,109100.0,1.38608146]
[1748320310390,0.2780454,109110.0,109100.0,1.32498146]
[1748320310597,0.79809171,109110.0,109100.0,0.46471515]
[1748320310894,0.183279,109090.0,109080.0,0.5740891]
[1748320311093,0.29084531,109090.0,109080.0,0.6140891]
[1748320311285,0.35154531,109090.0,109080.0,0.2232891]
[1748320311491,0.35154531,109090.0,109080.0,0.9748891]
[1748320311695,0.35154531,109090.0,109080.0,1.08245541]
[1748320311901,0.243979,109090.0,109080.0,1.0059891]
[1748320312291,0.243979,109090.0,109080.0,0.7151891]
[1748320312493,0.243979,109090.0,109080.0,0.7181891]
[1748320313596,0.243979,109090.0,109080.0,0.7151891]
[1748320313797,0.244979,109090.0,109080.0,0.7171891]
[1748320314186,0.276279,109090.0,109080.0,0.7171891]
[1748320314497,0.276279,109090.0,109080.0,0.7161891]
[1748320315298,0.276279,109090.0,109080.0,0.6850891]
[1748320315698,0.276279,109090.0,109080.0,0.7172891]
[1748320315901,0.276279,109090.0,109080.0,0.6850891]
[1748320316098,0.276279,109090.0,109080.0,0.79266787]
[1748320316395,0.276279,109090.0,109080.0,0.40186787]
[1748320316601,0.79633777,109090.0,109080.0,0.2242891]
[1748320318196,0.688759,109090.0,109080.0,0.2242891]
[1748320319705,0.276279,109090.0,109080.0,0.2242891]
[1748320319905,0.688799,109090.0,109080.0,0.36296787]
[1748320320204,0.688799,109090.0,109080.0,0.17967877]
[1748320320400,0.688799,109090.0,109080.0,0.36296787]
[1748320321700,0.276279,109090.0,109080.0,0.37296787]
[1748320322006,0.276279,109090.0,109080.0,0.73376787]
[1748320322200,0.276399,109090.0,109080.0,0.76376787]
[1748320326306,0.276399,109090.0,109080.0,0.79416787]
[1748320332210,0.276399,109090.0,109080.0,0.43336787]
[1748320332421,0.276399,109090.0,109080.0,0.79416787]
[1748320334010,0.276399,109090.0,109080.0,0.79415288]
[1748320334809,0.06262,109090.0,109080.0,0.90171666]
[1748320335010,0.2458989,109090.0,109080.0,0.90171666]
[1748320335211,0.2457789,109090.0,109080.0,0.74350104]
[1748320335407,0.2457789,109090.0,109080.0,0.86350104]
[1748320335613,0.2458989,109090.0,109080.0,0.86350104]
[1748320338520,0.2458989,109090.0,109080.0,0.89530104]
[1748320338820,0.2788989,109090.0,109080.0,0.89530104]
[1748320339321,0.2788989,109090.0,109080.0,0.78773726]
[1748320339917,0.2788989,109090.0,109080.0,0.68017348]
[1748320340115,0.2788989,109090.0,109080.0,1.04089348]
[1748320340416,0.2788989,109090.0,109080.0,0.78765726]
[1748320340620,0.2788989,109090.0,109080.0,0.36473726]
[1748320340821,0.2788989,109090.0,109080.0,0.39653726]
[1748320341221,0.31732999,109090.0,109080.0,0.40699574]
[1748320341623,0.31732999,109090.0,109080.0,0.43859574]
[1748320345720,0.2788989,109090.0,109080.0,0.34519574]
[1748320346420,0.38646268,109090.0,109080.0,0.34519574]
[1748320347122,0.38646268,109090.0,109080.0,0.23763196]
[1748320347323,0.38646268,109090.0,109080.0,0.34519574]
[1748320347920,0.38646268,109090.0,109080.0,0.33519574]
[1748320348119,0.38646268,109090.0,109080.0,0.34519574]
[1748320348319,0.2788989,109090.0,109080.0,0.34519574]
[1748320348517,0.31733524,109090.0,109080.0,0.34519574]
[1748320351827,0.31733524,109090.0,109080.0,0.37749574]
[1748320353627,0.31733524,109090.0,109080.0,0.34519574]
[1748320354827,0.31733524,109090.0,109080.0,0.70599574]
[1748320355836,0.31733524,109090.0,109080.0,0.14045848]
[1748320355837,0.42489902,109090.0,109080.0,0.14045848]
[1748320356026,0.78569902,109090.0,109080.0,0.13045848]
[1748320356528,0.78569902,109090.0,109080.0,0.12]
[1748320357837,1.2349348,109090.0,109080.0,0.12]
[1748320358042,0.1832958,109080.0,109070.0,8e-08]
[1748320358334,0.1833126,109070.0,109060.0,0.02888309]
[1748320358538,0.82274016,109070.0,109060.0,0.12000009]
[1748320358835,1.16442816,109070.0,109060.0,0.12000009]
[1748320359226,1.178092,109070.0,109060.0,0.12000009]
[1748320359428,0.1833462,109050.0,109040.0,0.1813994]
[1748320359627,1.06426998,109050.0,109040.0,0.3013994]
[1748320359932,1.12667796,109050.0,109040.0,0.3013994]
[1748320360431,1.12667796,109050.0,109040.0,0.4113994]
[1748320361135,1.12667796,109050.0,109040.0,0.4123994]
[1748320361136,1.1661143,109050.0,109040.0,0.4123994]
[1748320361435,1.1979143,109050.0,109040.0,0.4424994]
[1748320362536,1.15947796,109050.0,109040.0,0.4424994]
[1748320362746,1.15947796,109050.0,109040.0,0.13459783]
[1748320362924,1.35889372,109050.0,109040.0,0.121]
[1748320363127,1.71969372,109050.0,109040.0,0.121]
[1748320365942,1.75847947,109050.0,109040.0,0.121]
[1748320366727,1.54313595,109050.0,109040.0,0.121]
[1748320366931,1.65080771,109050.0,109040.0,0.121]
[1748320374735,1.61202196,109050.0,109040.0,0.121]
[1748320374937,1.61202196,109050.0,109040.0,0.1527]
[1748320376542,1.52031796,109050.0,109040.0,0.1527]
[1748320377444,1.55905535,109050.0,109040.0,0.1527]
[1748320379739,1.14645535,109050.0,109040.0,0.1527]
[1748320380144,1.94993535,109050.0,109040.0,0.1527]
[1748320382844,1.84226359,109050.0,109040.0,0.1527]
[1748320383039,1.94993535,109050.0,109040.0,0.1527]
[1748320386743,2.05760711,109050.0,109040.0,0.1527]
[1748320387543,1.94993535,109050.0,109040.0,0.1527]
[1748320387742,2.007223,109050.0,109040.0,0.1527]
[1748320387944,2.00722379,109050.0,109040.0,0.1527]
[1748320391547,2.09270084,109050.0,109040.0,0.1527]
[1748320394048,2.03541319,109050.0,109040.0,0.1527]
[1748320399344,1.12426064,109050.0,109040.0,0.1527]
[1748320399542,0.73186064,109050.0,109040.0,0.367763]
[1748320399756,0.30868064,109050.0,109040.0,0.47543555]
[1748320400050,0.63596359,109050.0,109040.0,0.47543555]
[1748320400260,0.63584359,109050.0,109040.0,0.47543555]
[1748320400559,0.74351614,109050.0,109040.0,0.47543555]
[1748320401058,0.74363614,109050.0,109040.0,0.47543555]
[1748320402058,0.63596359,109050.0,109040.0,0.367763]
[1748320403059,0.22320359,109050.0,109040.0,0.367763]
[1748320403357,0.63596359,109050.0,109040.0,0.1844]
[1748320406259,0.63596359,109050.0,109040.0,0.367763]
[1748320406661,0.66756359,109050.0,109040.0,0.367763]
[1748320407160,0.22320359,109050.0,109040.0,0.367763]
[1748320407356,0.63596359,109050.0,109040.0,0.367763]
[1748320410056,0.66606359,109050.0,109040.0,0.1844]
[1748320410257,0.77369708,109050.0,109040.0,0.1844]
[1748320410458,0.80689708,109050.0,109040.0,0.1844]
[1748320410657,0.69926359,109050.0,109040.0,0.367763]
[1748320413968,0.03985739,109050.0,109040.0,0.83619649]
[1748320414169,0.63592359,109050.0,109040.0,0.83619649]
[1748320414467,0.5970662,109050.0,109040.0,0.83619649]
[1748320414663,0.1843462,109050.0,109040.0,0.83619649]
[1748320414864,0.5970662,109050.0,109040.0,0.83619649]
[1748320415057,0.5971862,109050.0,109040.0,0.83619649]
[1748320415465,0.1844662,109050.0,109040.0,0.83619649]
[1748320415863,0.1843462,109050.0,109040.0,0.83619649]
[1748320416062,0.1844662,109050.0,109040.0,0.83619649]
[1748320416567,0.5971862,109050.0,109040.0,0.83619649]
[1748320417365,0.00112,109050.0,109040.0,0.97619649]
[1748320417668,0.0001375,109060.0,109050.0,0.1833462]
[1748320417856,0.05731618,109080.0,109070.0,0.1833125]
[1748320418162,0.24061188,109080.0,109070.0,1.17194599]
[1748320418368,0.24061188,109080.0,109070.0,1.35642599]
[1748320418570,0.24073188,109080.0,109070.0,1.35642599]
[1748320418955,0.24573188,109080.0,109070.0,0.77587784]
[1748320419161,0.24573188,109080.0,109070.0,0.7963125]
[1748320419362,0.2535157,109080.0,109070.0,0.7963125]
[1748320420166,0.2535157,109080.0,109070.0,1.1571125]
[1748320420467,0.1884157,109080.0,109070.0,1.26474599]
[1748320420967,0.1834157,109080.0,109070.0,1.26474599]
[1748320421269,0.1844157,109080.0,109070.0,1.26574599]
[1748320421456,0.1844157,109080.0,109070.0,1.27511947]
[1748320421772,0.5970957,109080.0,109070.0,1.27511947]
[1748320423775,0.6293957,109080.0,109070.0,1.27511947]
[1748320426078,0.6626957,109080.0,109070.0,1.27511947]
[1748320427574,0.2500157,109080.0,109070.0,1.27511947]
[1748320427774,0.2167157,109080.0,109070.0,1.27511947]
[1748320428574,0.2167157,109080.0,109070.0,1.41511947]
[1748320428777,0.2165957,109080.0,109070.0,1.41511947]
[1748320429174,0.2167157,109080.0,109070.0,1.41511947]
[1748320430069,0.2495157,109080.0,109070.0,1.41511947]
[1748320433090,0.2495157,109080.0,109070.0,1.30748598]
[1748320433292,0.2811157,109080.0,109070.0,1.41511947]
[1748320441099,0.03342,109080.0,109070.0,1.41511947]
[1748320441299,0.2167158,109080.0,109070.0,1.27511947]
[1748320441894,0.0634375,109090.0,109080.0,0.1832958]
[1748320442093,0.0001375,109090.0,109080.0,1.19213478]
[1748320442290,0.0001375,109090.0,109080.0,1.60469478]
[1748320442490,0.0002575,109090.0,109080.0,1.60469478]
[1748320443298,0.0022575,109090.0,109080.0,1.60569478]
[1748320443500,0.0022575,109090.0,109080.0,1.51602278]
[1748320443692,0.0022575,109090.0,109080.0,1.41881116]
[1748320444105,0.0328575,109090.0,109080.0,1.41881116]
[1748320444293,0.0022575,109090.0,109080.0,1.41881116]
[1748320444599,0.0022575,109090.0,109080.0,1.52644465]
[1748320444799,0.0021375,109090.0,109080.0,1.61811665]
[1748320445000,0.0022575,109090.0,109080.0,1.61811665]
[1748320445202,0.0022575,109090.0,109080.0,1.62073719]
[1748320445496,0.0644,109110.0,109100.0,0.1832622]
[1748320445701,0.0949,109110.0,109100.0,0.96089569]
[1748320445999,0.09502,109110.0,109100.0,1.02349569]
[1748320446203,0.0632,109110.0,109100.0,1.02349569]
[1748320446595,0.06432,109110.0,109100.0,1.02349569]
[1748320446901,0.06532,109110.0,109100.0,1.39574405]
[1748320449701,0.06532,109110.0,109100.0,1.40964207]
[1748320450905,0.06532,109110.0,109100.0,1.39919371]
[1748320455503,0.00212,109110.0,109100.0,1.81167371]
[1748320455707,0.002,109110.0,109100.0,1.39919371]
[1748320456006,0.00212,109110.0,109100.0,1.39919371]
[1748320457201,0.03292,109110.0,109100.0,1.39919371]
[1748320457807,0.03292,109110.0,109100.0,1.75999371]
[1748320458106,0.03292,109110.0,109100.0,2.17247371]
[1748320458309,0.06432,109110.0,109100.0,2.17247371]
[1748320458502,0.06432,109110.0,109100.0,1.36999371]
[1748320458695,0.06432,109110.0,109100.0,1.75971371]
[1748320459495,0.00212,109110.0,109100.0,1.75971371]
[1748320459696,0.0309375,109120.0,109110.0,0.1832454]
[1748320459902,0.0001375,109120.0,109110.0,1.50213238]
[1748320460205,0.0953,109130.0,109120.0,0.1832286]
[1748320460503,0.0953,109130.0,109120.0,0.99406209]
[1748320461409,0.0953,109130.0,109120.0,0.8864286]
[1748320461613,0.09542,109130.0,109120.0,0.99406209]
[1748320462414,0.09642,109130.0,109120.0,0.99706209]
[1748320462915,0.09642,109130.0,109120.0,0.99906209]
[1748320465216,0.09642,109130.0,109120.0,0.8914286]
[1748320465420,0.09642,109130.0,109120.0,0.99906209]
[1748320468623,0.2796318,109130.0,109120.0,0.8602286]
[1748320468811,0.2796318,109130.0,109120.0,1.2499086]
[1748320469417,0.09642,109130.0,109120.0,1.2499086]
[1748320471507,0.2796318,109130.0,109120.0,1.2499086]
[1748320471919,0.09642,109130.0,109120.0,1.1099086]
[1748320472417,0.09642,109130.0,109120.0,1.1699086]
[1748320472718,0.09642,109130.0,109120.0,1.18031696]
[1748320473606,0.09642,109130.0,109120.0,0.79067696]
[1748320473913,0.2796318,109130.0,109120.0,0.75947696]
[1748320474114,0.2796318,109130.0,109120.0,1.08911696]
[1748320474421,0.6920318,109130.0,109120.0,0.72831696]
[1748320475926,0.6920318,109130.0,109120.0,0.7178686]
[1748320476218,0.2796318,109130.0,109120.0,0.7178686]
[1748320476418,0.6920318,109130.0,109120.0,0.7498686]
[1748320476617,0.6920318,109130.0,109120.0,0.85750209]
[1748320478713,0.6920318,109130.0,109120.0,0.7498686]
[1748320479515,0.09642,109130.0,109120.0,0.7498686]
[1748320479711,0.6919918,109130.0,109120.0,1.1412686]
[1748320479917,0.6919918,109130.0,109120.0,1.27900209]
[1748320480117,0.6919918,109130.0,109120.0,1.28945045]
[1748320481320,0.6919918,109130.0,109120.0,0.92865045]
[1748320481515,0.2796318,109130.0,109120.0,0.92865045]
[1748320481712,0.2796318,109130.0,109120.0,0.53901045]
[1748320482012,0.2796318,109130.0,109120.0,0.92861045]
[1748320486021,0.09642,109130.0,109120.0,0.92861045]
[1748320486224,0.09642,109130.0,109120.0,1.29941045]
[1748320486718,0.0963,109130.0,109120.0,1.29941045]
[1748320487527,0.09642,109130.0,109120.0,1.29941045]
[1748320490127,0.09642,109130.0,109120.0,1.12933276]
[1748320491317,0.0963,109130.0,109120.0,1.12933276]
[1748320491518,0.09642,109130.0,109120.0,1.12933276]
[1748320492526,0.03372,109130.0,109120.0,1.12933276]
[1748320492918,0.07269527,109130.0,109120.0,1.12933276]
[1748320493423,0.04009527,109130.0,109120.0,1.12933276]
[1748320494521,0.00112,109130.0,109120.0,1.12933276]
[1748320496330,0.03192,109130.0,109120.0,1.12933276]
[1748320496720,0.03192,109130.0,109120.0,1.1188844]
[1748320498930,0.03192,109130.0,109120.0,1.16965667]
[1748320499930,0.03192,109130.0,109120.0,1.18013534]
[1748320502331,0.0611375,109140.0,109130.0,0.1832118]
[1748320502531,0.0941375,109140.0,109130.0,1.00494529]
[1748320503123,0.0942575,109140.0,109130.0,0.8973118]
[1748320503335,0.13322247,109140.0,109130.0,1.01542396]
[1748320503535,0.13422247,109140.0,109130.0,1.01542396]
[1748320504737,0.0952575,109140.0,109130.0,1.01542396]
[1748320505137,0.0952575,109140.0,109130.0,1.02465358]
[1748320509946,0.0952575,109140.0,109130.0,1.02448175]
[1748320511945,0.0012575,109140.0,109130.0,1.02448175]
[1748320512347,0.0011375,109140.0,109130.0,1.02448175]
[1748320512546,0.0341575,109140.0,109130.0,1.02448175]
[1748320514742,0.0012575,109140.0,109130.0,1.02448175]
[1748320516147,0.0012575,109140.0,109130.0,1.01400308]
[1748320518043,0.0012575,109140.0,109130.0,1.42632308]
[1748320518254,0.0342575,109140.0,109130.0,1.47700654]
[1748320518449,0.0669575,109140.0,109130.0,1.47700654]
[1748320518643,0.0969575,109140.0,109130.0,1.47700654]
[1748320519951,0.0969575,109140.0,109130.0,1.49004895]
[1748320521142,0.0969575,109140.0,109130.0,1.07772895]
[1748320521343,0.0969575,109140.0,109130.0,1.87952895]
[1748320522052,0.0969575,109140.0,109130.0,1.07772895]
[1748320522349,0.0969575,109140.0,109130.0,1.46720895]
[1748320522551,0.20441916,109140.0,109130.0,0.76706729]
[1748320523058,0.38761416,109140.0,109130.0,1.16701499]
[1748320523450,0.20441916,109140.0,109130.0,1.27447665]
[1748320524856,0.20441916,109140.0,109130.0,1.22379319]
[1748320525956,0.0969575,109140.0,109130.0,1.11633153]
[1748320527255,0.0969575,109140.0,109130.0,1.10328912]
[1748320531758,0.0969575,109140.0,109130.0,1.21076778]
[1748320531958,0.0969575,109140.0,109130.0,1.24196778]
[1748320532157,0.0969575,109140.0,109130.0,1.26196778]
[1748320532359,0.0968375,109140.0,109130.0,1.29276778]
[1748320532662,0.0969575,109140.0,109130.0,1.29276778]
[1748320534353,0.0969575,109140.0,109130.0,1.26196778]
[1748320535763,0.0969575,109140.0,109130.0,1.15448912]
[1748320535958,0.2801525,109140.0,109130.0,0.86996778]
[1748320536157,0.0969575,109140.0,109130.0,0.76248912]
[1748320537556,0.0969575,109140.0,109130.0,1.12328912]
[1748320538969,0.0969575,109140.0,109130.0,1.23076778]
[1748320542568,0.0969575,109140.0,109130.0,1.12328912]
[1748320542772,0.0012575,109140.0,109130.0,1.23076778]
[1748320542982,0.05686636,109160.0,109150.0,0.1831782]
[1748320543165,0.05686636,109160.0,109150.0,1.38331686]
[1748320543166,0.0301,109160.0,109150.0,1.38331686]
[1748320543362,0.50359323,109170.0,109160.0,0.1831615]
[1748320543363,0.58781323,109170.0,109160.0,0.1831615]
[1748320543672,0.61791323,109170.0,109160.0,0.99314016]
[1748320544065,0.61803323,109170.0,109160.0,0.8856615]
[1748320544468,0.51315459,109170.0,109160.0,0.8961292]
[1748320544772,0.51615459,109170.0,109160.0,0.8961292]
[1748320545965,0.47824,109170.0,109160.0,0.8856615]